fUSD/lending_fUSD_20260520
["ID","MTS","AMOUNT","RATE_DAILY","PERIOD"]
[422688556,1779247832000,-500.0,6.82e-05,2]
[422688554,1779247832000,-185.47378116,6.82e-05,2]
[422688558,1779247832000,-500.0,6.82e-05,2]
[422688582,1779247832000,-500.0,6.82e-05,2]
[422688580,1779247832000,-500.0,6.82e-05,2]
[422688583,1779247832000,-500.0,6.82e-05,2]
[422688585,1779247832000,-500.0,6.82e-05,2]
[422688587,1779247832000,-182.26203403,6.82e-05,2]
[422688588,1779247832000,-500.0,6.82e-05,2]
[422688586,1779247832000,-500.0,6.82e-05,2]
[422688590,1779247832000,-500.0,6.82e-05,2]
[422688589,1779247832000,-500.0,6.82e-05,2]
[422688592,1779247832000,-500.0,6.82e-05,2]
[422688593,1779247832000,-500.0,6.82e-05,2]
[422688594,1779247832000,-500.0,6.82e-05,2]
[422688591,1779247832000,-500.0,6.82e-05,2]
[422688597,1779247832000,-467.48410263,6.82e-05,2]
[422688595,1779247832000,-500.0,6.82e-05,2]
[422688596,1779247832000,-500.0,6.82e-05,2]
[422688560,1779247832000,-500.0,6.82e-05,2]
[422688581,1779247832000,-500.0,6.82e-05,2]
[422688584,1779247832000,-500.0,6.82e-05,2]
[422688564,1779247832000,-500.0,6.82e-05,2]
[422688579,1779247832000,-500.0,6.82e-05,2]
[422688563,1779247832000,-500.0,6.82e-05,2]
[422688559,1779247832000,-500.0,6.82e-05,2]
[422688561,1779247832000,-500.0,6.82e-05,2]
[422688577,1779247832000,-500.0,6.82e-05,2]
[422688567,1779247832000,-500.0,6.82e-05,2]
[422688568,1779247832000,-500.0,6.82e-05,2]
[422688566,1779247832000,-500.0,6.82e-05,2]
[422688571,1779247832000,-500.0,6.82e-05,2]
[422688565,1779247832000,-500.0,6.82e-05,2]
[422688574,1779247832000,-500.0,6.82e-05,2]
[422688570,1779247832000,-500.0,6.82e-05,2]
[422688572,1779247832000,-500.0,6.82e-05,2]
[422688573,1779247832000,-500.0,6.82e-05,2]
[422688578,1779247832000,-500.0,6.82e-05,2]
[422688576,1779247832000,-500.0,6.82e-05,2]
[422688575,1779247832000,-500.0,6.82e-05,2]
[422688569,1779247832000,-500.0,6.82e-05,2]
[422688607,1779247840000,-338.40816527,6.82e-05,2]
[422688606,1779247840000,-32.51589737,6.82e-05,2]
[422688629,1779247842000,-161.59183473,6.82e-05,2]
[422688630,1779247842000,-472.68816527,6.82e-05,2]
[422688640,1779247843000,-500.0,6.82e-05,2]
[422688631,1779247843000,-27.31183473,6.82e-05,2]
[422688632,1779247843000,-300.90223727,6.82e-05,2]
[422688633,1779247843000,-199.09776273,6.82e-05,2]
[422688634,1779247843000,-188.05942443,6.82e-05,2]
[422688635,1779247843000,-330.56281284,6.82e-05,2]
[422688636,1779247843000,-169.43718716,6.82e-05,2]
[422688637,1779247843000,-500.0,6.82e-05,2]
[422688644,1779247843000,-500.0,6.82e-05,2]
[422688639,1779247843000,-500.0,6.82e-05,2]
[422688641,1779247843000,-500.0,6.82e-05,2]
[422688645,1779247843000,-500.0,6.82e-05,2]
[422688643,1779247843000,-500.0,6.82e-05,2]
[422688647,1779247843000,-375.02003892,6.82e-05,2]
[422688642,1779247843000,-500.0,6.82e-05,2]
[422688646,1779247843000,-300.0,6.82e-05,2]
[422688638,1779247843000,-500.0,6.82e-05,2]
[422688671,1779247846000,-500.0,6.82e-05,2]
[422688667,1779247846000,-500.0,6.82e-05,2]
[422688669,1779247846000,-500.0,6.82e-05,2]
[422688668,1779247846000,-500.0,6.82e-05,2]
[422688670,1779247846000,-500.0,6.82e-05,2]
[422688673,1779247846000,-500.0,6.82e-05,2]
[422688666,1779247846000,-124.97996108,6.82e-05,2]
[422688674,1779247846000,-500.0,6.82e-05,2]
[422688675,1779247846000,-500.0,6.82e-05,2]
[422688676,1779247846000,-500.0,6.82e-05,2]
[422688678,1779247846000,-354.70923108,6.821e-05,2]
[422688677,1779247846000,-13913.02018048,6.821e-05,2]
[422688679,1779247846000,1080.0,0.0001043,5]
[422688672,1779247846000,-500.0,6.82e-05,2]
[422688744,1779248019000,152.0,9.66e-05,7]
[422688745,1779248454000,1077.0,0.00010431,5]
[422688749,1779248532000,-169.05,3.538e-05,2]
[422688747,1779248532000,-169.05,3.375e-05,2]
[422688748,1779248532000,-151.0,3.409e-05,2]
[422688752,1779248532000,-169.05,4.025e-05,2]
[422688750,1779248532000,-169.05,3.7e-05,2]
[422688751,1779248532000,-169.05,3.863e-05,2]
[422688746,1779248532000,-169.05,3.213e-05,2]
[422688754,1779248533000,-169.05,4.35e-05,2]
[422688756,1779248533000,-3327.55,4.61e-05,2]
[422688755,1779248533000,-169.05,4.513e-05,2]
[422688753,1779248533000,-169.05,4.188e-05,2]
[422688762,1779248534000,-169.05,5e-05,2]
[422688763,1779248534000,-250.0,5.071e-05,2]
[422688759,1779248534000,-186.4,4.61e-05,2]
[422688760,1779248534000,-169.05,4.675e-05,2]
[422688758,1779248534000,-250.0,4.61e-05,2]
[422688761,1779248534000,-169.05,4.837e-05,2]
[422688757,1779248534000,-61.70600114,4.61e-05,2]
[422688771,1779248535000,-150.0,5.812e-05,2]
[422688772,1779248535000,-169.05,5.812e-05,2]
[422688770,1779248535000,-186.4,5.762e-05,2]
[422688769,1779248535000,-169.05,5.65e-05,2]
[422688764,1779248535000,-171.13,5.149e-05,2]
[422688766,1779248535000,-186.4,5.186e-05,2]
[422688773,1779248535000,-169.05,5.975e-05,2]
[422688765,1779248535000,-169.05,5.162e-05,2]
[422688768,1779248535000,-169.05,5.487e-05,2]
[422688774,1779248535000,-190.0,6.066e-05,2]
[422688767,1779248535000,-169.05,5.325e-05,2]
[422688775,1779248535000,-1200.0,6.066e-05,2]
[422688787,1779248535000,-5000.0,6.068e-05,2]
[422688786,1779248535000,-5000.0,6.068e-05,2]
[422688784,1779248535000,-498.2262034,6.067e-05,2]
[422688782,1779248535000,-500.0,6.067e-05,2]
[422688783,1779248535000,-500.0,6.067e-05,2]
[422688785,1779248535000,-1648.28779546,6.068e-05,2]
[422688780,1779248535000,-500.0,6.067e-05,2]
[422688779,1779248535000,-500.0,6.067e-05,2]
[422688778,1779248535000,-353.48600114,6.067e-05,2]
[422688776,1779248535000,-500.0,6.067e-05,2]
[422688781,1779248535000,-500.0,6.067e-05,2]
[422688777,1779248535000,-146.51399886,6.067e-05,2]
[422688789,1779248536000,-5000.0,6.068e-05,2]
[422688788,1779248536000,-5000.0,6.068e-05,2]
[422688792,1779248537000,-5000.0,6.068e-05,2]
[422688791,1779248537000,-5000.0,6.068e-05,2]
[422688790,1779248537000,-5000.0,6.068e-05,2]
[422688793,1779248538000,-5000.0,6.068e-05,2]
[422688794,1779248538000,-5000.0,6.068e-05,2]
[422688796,1779248546000,-5000.0,6.068e-05,2]
[422688795,1779248546000,-5000.0,6.068e-05,2]
[422688798,1779248547000,-5000.0,6.068e-05,2]
[422688797,1779248547000,-5000.0,6.068e-05,2]
[422688799,1779248548000,-5000.0,6.068e-05,2]
[422688801,1779248549000,-5000.0,6.068e-05,2]
[422688800,1779248549000,-5000.0,6.068e-05,2]
[422688804,1779248550000,-5000.0,6.068e-05,2]
[422688803,1779248550000,-5000.0,6.068e-05,2]
[422688802,1779248550000,-5000.0,6.068e-05,2]
[422688806,1779248551000,-5000.0,6.068e-05,2]
[422688805,1779248551000,-5000.0,6.068e-05,2]
[422688808,1779248552000,-5000.0,6.068e-05,2]
[422688807,1779248552000,-5000.0,6.068e-05,2]
[422688809,1779248553000,-5000.0,6.068e-05,2]
[422688810,1779248554000,-5000.0,6.068e-05,2]
[422688813,1779248555000,-5000.0,6.068e-05,2]
[422688812,1779248555000,-5000.0,6.068e-05,2]
[422688811,1779248555000,-5000.0,6.068e-05,2]
[422688815,1779248556000,-5000.0,6.068e-05,2]
[422688814,1779248556000,-5000.0,6.068e-05,2]
[422688817,1779248557000,-5000.0,6.068e-05,2]
[422688816,1779248557000,-5000.0,6.068e-05,2]
[422688818,1779248558000,-5000.0,6.068e-05,2]
[422688819,1779248563000,-200.0,6.068e-05,2]
[422688822,1779248564000,-200.0,6.068e-05,2]
[422688821,1779248564000,-200.0,6.068e-05,2]
[422688820,1779248564000,-200.0,6.068e-05,2]
[422688824,1779248565000,-200.0,6.068e-05,2]
[422688823,1779248565000,-200.0,6.068e-05,2]
[422688827,1779248566000,-200.0,6.068e-05,2]
[422688826,1779248566000,-200.0,6.068e-05,2]
[422688825,1779248566000,-200.0,6.068e-05,2]
[422688829,1779248567000,-200.0,6.068e-05,2]
[422688828,1779248567000,-200.0,6.068e-05,2]
[422688831,1779248568000,-200.0,6.068e-05,2]
[422688830,1779248568000,-200.0,6.068e-05,2]
[422688832,1779248569000,-200.0,6.068e-05,2]
[422688834,1779248569000,-200.0,6.068e-05,2]
[422688833,1779248569000,-200.0,6.068e-05,2]
[422688836,1779248570000,-200.0,6.068e-05,2]
[422688835,1779248570000,-200.0,6.068e-05,2]
[422688837,1779248570000,-200.0,6.068e-05,2]
[422688839,1779248571000,-200.0,6.068e-05,2]
[422688838,1779248571000,-200.0,6.068e-05,2]
[422688842,1779248572000,-200.0,6.068e-05,2]
[422688841,1779248572000,-200.0,6.068e-05,2]
[422688840,1779248572000,-200.0,6.068e-05,2]
[422688844,1779248573000,-200.0,6.068e-05,2]
[422688843,1779248573000,-200.0,6.068e-05,2]
[422688846,1779248574000,-200.0,6.068e-05,2]
[422688845,1779248574000,-200.0,6.068e-05,2]
[422688847,1779248575000,-200.0,6.068e-05,2]
[422688849,1779248575000,-200.0,6.068e-05,2]
[422688848,1779248575000,-200.0,6.068e-05,2]
[422688850,1779248576000,-200.0,6.068e-05,2]
[422688851,1779248576000,-200.0,6.068e-05,2]
[422688852,1779248577000,-200.0,6.068e-05,2]
[422688854,1779248577000,-200.0,6.068e-05,2]
[422688853,1779248577000,-200.0,6.068e-05,2]
[422688856,1779248578000,-200.0,6.068e-05,2]
[422688855,1779248578000,-200.0,6.068e-05,2]
[422688859,1779248579000,-200.0,6.068e-05,2]
[422688858,1779248579000,-200.0,6.068e-05,2]
[422688857,1779248579000,-200.0,6.068e-05,2]
[422688860,1779248580000,-200.0,6.068e-05,2]
[422688863,1779248581000,-200.0,6.067e-05,2]
[422688862,1779248581000,-200.0,6.068e-05,2]
[422688861,1779248581000,-200.0,6.068e-05,2]
[422688866,1779248582000,-200.0,6.068e-05,2]
[422688864,1779248582000,-100.0,6.067e-05,2]
[422688865,1779248582000,-100.0,6.068e-05,2]
[422688867,1779248583000,-200.0,6.068e-05,2]
[422688868,1779248583000,-200.0,6.068e-05,2]
[422688869,1779248584000,-200.0,6.068e-05,2]
[422688870,1779248588000,-1000.0,6.068e-05,2]
[422688871,1779248588000,-1000.0,6.068e-05,2]
[422688872,1779248589000,-1000.0,6.068e-05,2]
[422688873,1779248590000,-1000.0,6.068e-05,2]
[422688874,1779248591000,-1000.0,6.068e-05,2]
[422688875,1779248592000,-1000.0,6.068e-05,2]
[422688877,1779248593000,-1000.0,6.068e-05,2]
[422688876,1779248593000,-1000.0,6.068e-05,2]
[422688878,1779248594000,-1000.0,6.068e-05,2]
[422688879,1779248595000,-1000.0,6.068e-05,2]
[422688880,1779248608000,-1000.0,6.068e-05,2]
[422688882,1779248646000,-200.0,6.068e-05,2]
[422688881,1779248646000,-300.0,6.067e-05,2]
[422688894,1779249017000,1048.12,0.000105,3]
[422688908,1779249031000,-475477.01609369,6.068e-05,2]
[422688904,1779249031000,-1200.0,6.066e-05,2]
[422688906,1779249031000,-444.24735593,6.067e-05,2]
[422688903,1779249031000,-300.0,6.066e-05,2]
[422688909,1779249031000,-27167.26404114,6.068e-05,2]
[422688905,1779249031000,-150.0,6.067e-05,2]
[422688910,1779249031000,-4211.59187353,6.068e-05,2]
[422688907,1779249031000,-6366.44529412,6.067e-05,2]
[422688912,1779249032000,-4438.00906479,6.068e-05,2]
[422688913,1779249032000,-2617.66149264,6.068e-05,2]
[422688911,1779249032000,-3000.0,6.068e-05,2]
[422688930,1779249038000,-5091.90804701,6.068e-05,2]
[422688931,1779249038000,-308.5174995,6.068e-05,2]
[422689146,1779249040000,-519.56113632,6.068e-05,2]
[422689176,1779249040000,-2410.0,6.068e-05,2]
[422689148,1779249040000,-5186.96950047,6.068e-05,2]
[422689338,1779249041000,-1554.63196836,6.068e-05,2]
[422689336,1779249041000,-334.08,6.068e-05,2]
[422689332,1779249041000,-350.33533698,6.068e-05,2]
[422689559,1779249043000,-15984.64313801,6.068e-05,2]
[422689552,1779249043000,-9167.64423464,6.068e-05,2]
[422689562,1779249043000,-639.42,6.068e-05,2]
[422689547,1779249043000,-1324.41,6.068e-05,2]
[422689577,1779249043000,-126560.24905963,6.068e-05,2]
[422689575,1779249043000,-1208.68179918,6.068e-05,2]
[422689612,1779249043000,-993.80145634,6.068e-05,2]
[422689584,1779249043000,-83513.31243687,6.068e-05,2]
[422689969,1779249046000,-1240.65115544,6.068e-05,2]
[422689978,1779249046000,-571.82945458,6.068e-05,2]
[422689989,1779249046000,-23518.44893832,6.068e-05,2]
[422689972,1779249046000,-9570.9819259,6.068e-05,2]
[422689996,1779249046000,-2076.3133,6.068e-05,2]
[422690021,1779249046000,-319.71,6.068e-05,2]
[422690014,1779249046000,-903.35986595,6.068e-05,2]
[422690011,1779249046000,-314.55868934,6.068e-05,2]
[422689987,1779249046000,-649.2,6.068e-05,2]
[422690803,1779249060000,1081.0,0.00010431,5]
[422690808,1779249076000,-351.9,6.068e-05,2]
[422690807,1779249076000,-309.80122419,6.068e-05,2]
[422690805,1779249076000,-150.0,6.067e-05,2]
[422690806,1779249076000,-202.92218985,6.068e-05,2]
[422690804,1779249076000,-300.0,6.067e-05,2]
[422690810,1779249358000,-156.02,3.188e-05,2]
[422690813,1779249358000,-156.02,3.728e-05,2]
[422690811,1779249358000,-156.02,3.368e-05,2]
[422690812,1779249358000,-156.02,3.548e-05,2]
[422690815,1779249358000,-156.02,4.089e-05,2]
[422690818,1779249358000,-156.02,4.629e-05,2]
[422690817,1779249358000,-156.02,4.449e-05,2]
[422690816,1779249358000,-156.02,4.269e-05,2]
[422690819,1779249358000,-156.02,4.809e-05,2]
[422690820,1779249358000,-156.02,4.99e-05,2]
[422690814,1779249358000,-156.02,3.909e-05,2]
[422690823,1779249428000,-156.02,5.35e-05,2]
[422690824,1779249428000,-150.0,5.402e-05,2]
[422690822,1779249428000,-250.0,5.26e-05,2]
[422690821,1779249428000,-156.02,5.17e-05,2]
[422690826,1779249429000,-150.0,5.509e-05,2]
[422690825,1779249429000,-150.0,5.456e-05,2]
[422690827,1779249429000,-156.02,5.53e-05,2]
[422690829,1779249429000,-150.0,5.616e-05,2]
[422690830,1779249429000,-150.0,5.67e-05,2]
[422690828,1779249429000,-150.0,5.563e-05,2]
[422690833,1779249429000,-150.0,5.723e-05,2]
[422690832,1779249429000,-156.02,5.71e-05,2]
[422690834,1779249429000,-150.0,5.777e-05,2]
[422690835,1779249429000,-176.0,5.83e-05,2]
[422690836,1779249429000,-156.02,5.89e-05,2]
[422690837,1779249429000,-171.13,5.962e-05,2]
[422690831,1779249429000,-250.0,5.687e-05,2]
[422690844,1779249664000,869.0,0.00010431,5]
[422690849,1779249948000,152.0,9.727e-05,7]
[422690852,1779250028000,-171.13,4.04e-05,2]
[422690854,1779250028000,-150.0,5.274e-05,2]
[422690853,1779250028000,-1381.44,5.006e-05,2]
[422690855,1779250029000,-8297.43,5.275e-05,2]
[422690908,1779250052000,-2602.4,5.275e-05,2]
[422690907,1779250052000,-7397.6,5.275e-05,2]
[422690934,1779250075000,-10000.0,5.275e-05,2]
[422690987,1779250096000,-155.49,5.275e-05,2]
[422690988,1779250096000,-150.0,5.326e-05,2]
[422690991,1779250096000,-507.63,5.398e-05,2]
[422690994,1779250096000,-500.0,5.492e-05,2]
[422690989,1779250096000,-182.12,5.372e-05,2]
[422690992,1779250096000,-150.0,5.432e-05,2]
[422690993,1779250096000,-150.0,5.485e-05,2]
[422690990,1779250096000,-150.0,5.379e-05,2]
[422691009,1779250149000,23787.8442428,5.505e-05,5]
[422691011,1779250190000,-154.67,2.775e-05,2]
[422691012,1779250190000,-154.67,3.108e-05,2]
[422691013,1779250190000,-154.67,3.442e-05,2]
[422691014,1779250190000,-154.67,3.775e-05,2]
[422691015,1779250190000,-154.67,4.108e-05,2]
[422691017,1779250190000,-303.98,5.505e-05,2]
[422691018,1779250190000,-5042.43,5.505e-05,2]
[422691016,1779250190000,-154.67,4.442e-05,2]
[422691020,1779250190000,-244.0,5.614e-05,2]
[422691021,1779250190000,-250.0,5.801e-05,2]
[422691022,1779250190000,-250.0,5.802e-05,2]
[422691024,1779250190000,-300.0,5.893e-05,2]
[422691023,1779250190000,-1200.0,5.892e-05,2]
[422691025,1779250190000,-1200.0,5.893e-05,2]
[422691026,1779250190000,-131.57,5.893e-05,2]
[422691019,1779250190000,-150.0,5.559e-05,2]
[422691033,1779250210000,-154.67,5.441e-05,2]
[422691028,1779250210000,-154.67,4.775e-05,2]
[422691029,1779250210000,-250.0,4.942e-05,2]
[422691030,1779250210000,-154.67,5.108e-05,2]
[422691031,1779250210000,-250.0,5.252e-05,2]
[422691032,1779250210000,-360.48876971,5.422e-05,2]
[422691034,1779250210000,-168.43,5.893e-05,2]
[422691035,1779250210000,-300.0,5.894e-05,2]
[422691044,1779250210000,-500.0,5.895e-05,2]
[422691038,1779250210000,-1012.71,5.895e-05,2]
[422691036,1779250210000,-1200.0,5.894e-05,2]
[422691040,1779250210000,-500.0,5.895e-05,2]
[422691039,1779250210000,-500.0,5.895e-05,2]
[422691041,1779250210000,-500.0,5.895e-05,2]
[422691042,1779250210000,-500.0,5.895e-05,2]
[422691043,1779250210000,-500.0,5.895e-05,2]
[422691037,1779250210000,-300.0,5.894e-05,2]
[422691077,1779250232000,-500.0,6.067e-05,2]
[422691075,1779250232000,-500.0,6.067e-05,2]
[422691079,1779250232000,-500.0,6.067e-05,2]
[422691065,1779250232000,-500.0,6.067e-05,2]
[422691076,1779250232000,-500.0,6.067e-05,2]
[422691074,1779250232000,-500.0,6.067e-05,2]
[422691085,1779250232000,-500.0,6.067e-05,2]
[422691069,1779250232000,-500.0,6.067e-05,2]
[422691078,1779250232000,-500.0,6.067e-05,2]
[422691071,1779250232000,-500.0,6.067e-05,2]
[422691082,1779250232000,-500.0,6.067e-05,2]
[422691086,1779250232000,-500.0,6.067e-05,2]
[422691080,1779250232000,-500.0,6.067e-05,2]
[422691084,1779250232000,-500.0,6.067e-05,2]
[422691083,1779250232000,-500.0,6.067e-05,2]
[422691088,1779250232000,-500.0,6.067e-05,2]
[422691094,1779250232000,-500.0,6.067e-05,2]
[422691095,1779250232000,-500.0,6.067e-05,2]
[422691099,1779250232000,-500.0,6.067e-05,2]
[422691096,1779250232000,-500.0,6.067e-05,2]
[422691081,1779250232000,-500.0,6.067e-05,2]
[422691067,1779250232000,-500.0,6.067e-05,2]
[422691051,1779250232000,-96.41661297,6.058e-05,2]
[422691066,1779250232000,-500.0,6.067e-05,2]
[422691047,1779250232000,-151.02307539,6.038e-05,2]
[422691046,1779250232000,-200.0,6.018e-05,2]
[422691048,1779250232000,-62.49943673,6.038e-05,2]
[422691060,1779250232000,-500.0,6.067e-05,2]
[422691050,1779250232000,-150.0,6.057e-05,2]
[422691087,1779250232000,-500.0,6.067e-05,2]
[422691056,1779250232000,-337.89183873,6.067e-05,2]
[422691053,1779250232000,-78242.87882896,6.058e-05,2]
[422691052,1779250232000,-342.48315084,6.058e-05,2]
[422691054,1779250232000,-1369.9988951,6.064e-05,2]
[422691070,1779250232000,-500.0,6.067e-05,2]
[422691049,1779250232000,-182.12,6.043e-05,2]
[422691058,1779250232000,-500.0,6.067e-05,2]
[422691059,1779250232000,-500.0,6.067e-05,2]
[422691055,1779250232000,-500.0,6.067e-05,2]
[422691062,1779250232000,-500.0,6.067e-05,2]
[422691073,1779250232000,-500.0,6.067e-05,2]
[422691072,1779250232000,-500.0,6.067e-05,2]
[422691061,1779250232000,-500.0,6.067e-05,2]
[422691063,1779250232000,-500.0,6.067e-05,2]
[422691064,1779250232000,-500.0,6.067e-05,2]
[422691068,1779250232000,-500.0,6.067e-05,2]
[422691057,1779250232000,-500.0,6.067e-05,2]
[422691098,1779250232000,-500.0,6.067e-05,2]
[422691112,1779250232000,-500.0,6.067e-05,2]
[422691089,1779250232000,-500.0,6.067e-05,2]
[422691118,1779250232000,-500.0,6.067e-05,2]
[422691119,1779250232000,-500.0,6.067e-05,2]
[422691097,1779250232000,-500.0,6.067e-05,2]
[422691127,1779250232000,-500.0,6.067e-05,2]
[422691130,1779250232000,-500.0,6.067e-05,2]
[422691138,1779250232000,-500.0,6.067e-05,2]
[422691128,1779250232000,-500.0,6.067e-05,2]
[422691131,1779250232000,-500.0,6.067e-05,2]
[422691129,1779250232000,-500.0,6.067e-05,2]
[422691139,1779250232000,-282.95237393,6.067e-05,2]
[422691132,1779250232000,-500.0,6.067e-05,2]
[422691134,1779250232000,-500.0,6.067e-05,2]
[422691133,1779250232000,-500.0,6.067e-05,2]
[422691136,1779250232000,-500.0,6.067e-05,2]
[422691137,1779250232000,-500.0,6.067e-05,2]
[422691135,1779250232000,-500.0,6.067e-05,2]
[422691141,1779250232000,-500.0,6.067e-05,2]
[422691144,1779250232000,-15289.66062942,6.068e-05,2]
[422691142,1779250232000,-628.17913915,6.067e-05,2]
[422691140,1779250232000,-500.0,6.067e-05,2]
[422691143,1779250232000,-238471.12231014,6.068e-05,2]
[422691120,1779250232000,-500.0,6.067e-05,2]
[422691117,1779250232000,-500.0,6.067e-05,2]
[422691121,1779250232000,-500.0,6.067e-05,2]
[422691125,1779250232000,-150.0,6.067e-05,2]
[422691093,1779250232000,-500.0,6.067e-05,2]
[422691090,1779250232000,-500.0,6.067e-05,2]
[422691092,1779250232000,-599.23575988,6.067e-05,2]
[422691091,1779250232000,-500.0,6.067e-05,2]
[422691105,1779250232000,-500.0,6.067e-05,2]
[422691103,1779250232000,-500.0,6.067e-05,2]
[422691115,1779250232000,-500.0,6.067e-05,2]
[422691104,1779250232000,-220.69481046,6.067e-05,2]
[422691102,1779250232000,-500.0,6.067e-05,2]
[422691107,1779250232000,-500.0,6.067e-05,2]
[422691101,1779250232000,-500.0,6.067e-05,2]
[422691100,1779250232000,-500.0,6.067e-05,2]
[422691111,1779250232000,-500.0,6.067e-05,2]
[422691109,1779250232000,-500.0,6.067e-05,2]
[422691110,1779250232000,-500.0,6.067e-05,2]
[422691108,1779250232000,-600.0,6.067e-05,2]
[422691114,1779250232000,-500.0,6.067e-05,2]
[422691122,1779250232000,-162.55052264,6.067e-05,2]
[422691123,1779250232000,-500.0,6.067e-05,2]
[422691124,1779250232000,-160.19683292,6.067e-05,2]
[422691126,1779250232000,-500.0,6.067e-05,2]
[422691113,1779250232000,-500.0,6.067e-05,2]
[422691106,1779250232000,-500.0,6.067e-05,2]
[422691154,1779250233000,-2599.15164586,6.068e-05,2]
[422691153,1779250233000,-468.75595281,6.068e-05,2]
[422691151,1779250233000,-500.0,6.067e-05,2]
[422691149,1779250233000,-500.0,6.067e-05,2]
[422691145,1779250233000,-315.42809693,6.067e-05,2]
[422691146,1779250233000,-184.57190307,6.067e-05,2]
[422691148,1779250233000,-979.11363133,6.068e-05,2]
[422691147,1779250233000,-500.0,6.067e-05,2]
[422691150,1779250233000,-44.02,6.068e-05,2]
[422691156,1779250233000,-1263.97926805,6.068e-05,2]
[422691155,1779250233000,-500.0,6.067e-05,2]
[422691157,1779250233000,-1384.68337832,6.068e-05,2]
[422691159,1779250233000,-161.68273833,6.067e-05,2]
[422691161,1779250233000,-11724.99433307,6.068e-05,2]
[422691160,1779250233000,-424.15648896,6.068e-05,2]
[422691158,1779250233000,-1292.2457146,6.068e-05,2]
[422691162,1779250233000,-500.0,6.067e-05,2]
[422691163,1779250233000,-500.0,6.067e-05,2]
[422691164,1779250233000,-2494.88249215,6.068e-05,2]
[422691165,1779250233000,-5880.0,6.068e-05,2]
[422691152,1779250233000,-4593.03852259,6.068e-05,2]
[422691169,1779250238000,-21987.89984305,6.068e-05,2]
[422691168,1779250238000,-500.0,6.067e-05,2]
[422691172,1779250238000,-4143.25905905,6.068e-05,2]
[422691171,1779250238000,-2135.74992329,6.068e-05,2]
[422691170,1779250238000,-516.70824417,6.068e-05,2]
[422691180,1779250239000,-751.21415746,6.068e-05,2]
[422691184,1779250240000,-1068.32136773,6.068e-05,2]
[422691183,1779250240000,-332.11298935,6.068e-05,2]
[422691182,1779250240000,-17359.33378143,6.068e-05,2]
[422691185,1779250241000,-387.67738749,6.068e-05,2]
[422691190,1779250243000,-883.15095705,6.068e-05,2]
[422691189,1779250243000,-721.02518065,6.068e-05,2]
[422691188,1779250243000,-9815.40157859,6.068e-05,2]
[422691195,1779250246000,-122966.69156873,6.068e-05,2]
[422691193,1779250246000,-7660.97666714,6.068e-05,2]
[422691194,1779250246000,-600.0,6.068e-05,2]
[422691199,1779250246000,-658.03402278,6.068e-05,2]
[422691196,1779250246000,-49806.64642888,6.068e-05,2]
[422691198,1779250246000,-666.0,6.068e-05,2]
[422691197,1779250246000,-265.59999999,6.068e-05,2]
[422691203,1779250263000,-300.0,6.067e-05,2]
[422691204,1779250263000,-9700.0,6.068e-05,2]
[422691205,1779250270000,688.0,8.697e-05,5]
[422691208,1779250299000,-151.0,6.065e-05,2]
[422691210,1779250299000,-9547.0,6.068e-05,2]
[422691209,1779250299000,-151.0,6.065e-05,2]
[422691207,1779250299000,-151.0,6.065e-05,2]
[422691212,1779250319000,-10000.0,6.068e-05,2]
[422691215,1779250337000,-150.0,6.067e-05,2]
[422691214,1779250337000,-182.0,6.067e-05,2]
[422691213,1779250337000,-300.0,6.067e-05,2]
[422691216,1779250337000,-9368.0,6.068e-05,2]
[422691221,1779250357000,-500.0,6.067e-05,2]
[422691218,1779250357000,-500.0,6.067e-05,2]
[422691219,1779250357000,-500.0,6.067e-05,2]
[422691220,1779250357000,-500.0,6.067e-05,2]
[422691217,1779250357000,-500.0,6.067e-05,2]
[422691224,1779250357000,-500.0,6.067e-05,2]
[422691223,1779250357000,-500.0,6.067e-05,2]
[422691225,1779250357000,-500.0,6.067e-05,2]
[422691227,1779250357000,-500.0,6.067e-05,2]
[422691222,1779250357000,-500.0,6.067e-05,2]
[422691226,1779250357000,-500.0,6.067e-05,2]
[422691228,1779250358000,-500.0,6.067e-05,2]